bitfinex-derivatives/quotes_SOLF0:USTF0_20260102
["timestamp","ask_amount","ask_price","bid_price","bid_amount"]
[1767353520085,0.05259068,128.35,128.32,7.07326446]
[1767353520288,3.14179225,128.38,128.32,1.82883858]
[1767353520486,1.5131051,128.39,128.32,1.82883858]
[1767353520684,1.5131051,128.39,128.32,1.77747412]
[1767353521178,7.0187,128.38,128.32,1.77747412]
[1767353521385,0.05803257,128.36,128.34,0.05011485]
[1767353521683,0.05803257,128.36,128.3,1.77747412]
[1767353521886,8.70651972,128.36,128.3,8.80047412]
[1767353522486,8.70651972,128.36,128.32,0.05298641]
[1767353525290,8.5336051,128.35,128.32,0.05298641]
[1767353525685,8.5336051,128.35,128.28,1.77747412]
[1767353525686,1.62868715,128.34,128.28,1.77747412]
[1767353526791,0.05825871,128.32,128.3,0.0536085]
[1767353528392,0.05825871,128.32,128.28,1.77747412]
[1767353528691,3.20005096,128.32,128.26,1.77747412]
[1767353528894,1.62868715,128.29,128.25,10.52960987]
[1767353529192,3.14179225,128.29,128.25,10.52960987]
[1767353529391,3.14179225,128.29,128.26,0.05879352]
[1767353529392,0.05607219,128.28,128.26,0.05879352]
[1767353529594,0.05607219,128.28,128.25,9.70749184]
[1767353530390,1.5131051,128.27,128.25,9.184e-05]
[1767353530596,1.5131051,128.27,128.25,0.05532634]
[1767353530897,3.14179225,128.27,128.21,1.77747412]
[1767353531297,1.62868715,128.27,128.22,8.80477412]
[1767353531696,8.5369051,128.29,128.22,8.80477412]
[1767353532000,0.0544594,128.26,128.23,0.03303751]
[1767353532500,1.62868715,128.29,128.23,8.83731163]
[1767353533396,0.05381856,128.27,128.23,8.83731163]
[1767353534590,0.05381856,128.27,128.24,8.80357412]
[1767353534791,1.5131051,128.3,128.24,8.80357412]
[1767353535902,0.05438028,128.28,128.26,0.05803071]
[1767353539805,0.05438028,128.28,128.22,8.80447412]
[1767353540193,1.56748538,128.28,128.22,8.80447412]
[1767353540698,1.56748538,128.28,128.24,0.05160295]
[1767353540899,8.59158538,128.28,128.24,0.05160295]
[1767353541310,1.56748538,128.28,128.24,0.05160295]
[1767353546401,0.05438028,128.28,128.24,0.05160295]
[1767353548710,8.81958913,128.28,128.24,0.05160295]
[1767353549006,8.81958913,128.28,128.24,0.0013557]
[1767353549402,1.74100885,128.27,128.24,0.0013557]
[1767353550504,0.05438028,128.28,128.24,0.0013557]
[1767353551003,0.05438028,128.28,128.24,8.7847366]
[1767353551306,1.74100885,128.31,128.25,1.7572809]
[1767353552208,0.05067549,128.29,128.27,0.05438124]
[1767353552805,201.3792,128.34,128.27,0.05438124]
[1767353552806,3.25411395,128.33,128.27,0.05438124]
[1767353553306,1.74100885,128.32,128.27,0.05438124]
[1767353553505,8.76420885,128.3,128.24,7.0263]
[1767353554705,8.76420885,128.3,128.26,0.05438742]
[1767353554706,0.0525461,128.28,128.26,0.05438742]
[1767353560506,1.79355495,128.28,128.23,8.7840809]
[1767353560912,8.81775495,128.28,128.21,3.270386]
[1767353561214,8.76520885,128.28,128.21,3.270386]
[1767353561410,8.76520885,128.28,128.22,1.7572809]
[1767353561617,0.05748193,128.26,128.23,0.02932462]
[1767353572432,3.25411395,128.3,128.24,1.5131051]
[1767353572730,1.74100885,128.3,128.24,1.7572809]
[1767353572924,1.74100885,128.3,128.24,3.270386]
[1767353573534,0.05562429,128.28,128.26,0.0524464]
[1767353573729,3.25411395,128.32,128.26,0.0524464]
[1767353574028,1.74100885,128.32,128.26,0.0524464]
[1767353574636,0.05291075,128.3,128.26,0.0524464]
[1767353574933,0.05291075,128.3,128.26,7.0775464]
[1767353581840,0.05291075,128.3,128.26,0.0524464]
[1767353587643,0.05291075,128.3,128.26,1.58794619]
[1767353587848,0.05291075,128.3,128.27,1.53549979]
[1767353590142,1.52947369,128.32,128.27,8.55969979]
[1767353590347,1.52947369,128.32,128.27,1.53549979]
[1767353590545,1.52947369,128.34,128.27,1.53549979]
[1767353591153,0.05956963,128.32,128.29,0.05336692]
[1767353594253,0.05956963,128.32,128.29,1.58886671]
[1767353596760,7.0204,128.35,128.29,8.61236671]
[1767353597851,0.05286199,128.33,128.29,8.61236671]
[1767353599559,0.05286199,128.33,128.29,1.58886671]
[1767353600256,0.05286199,128.33,128.29,8.61236671]
[1767353600457,0.05286199,128.33,128.3,1.53549979]
[1767353604069,0.05286199,128.33,128.3,8.55849979]
[1767353604369,1.52947369,128.35,128.3,8.55849979]
[1767353605371,0.05214834,128.34,128.3,8.55849979]
[1767353605560,0.05214834,128.34,128.31,1.53549979]
[1767353605863,1.52947369,128.37,128.32,1.54501239]
[1767353606658,92.14,128.39,128.33,1.54501239]
[1767353606659,8.49735837,128.39,128.33,1.54501239]
[1767353606855,0.0535471,128.37,128.35,0.05453114]
[1767353613074,0.0535471,128.37,128.33,1.54501239]
[1767353614173,0.0535471,128.37,128.34,0.05937003]
[1767353614783,7.0728471,128.37,128.34,0.05937003]
[1767353619482,0.0535471,128.37,128.34,0.05937003]
[1767353622981,8.49735837,128.39,128.34,1.60438242]
[1767353623284,8.49735837,128.39,128.34,8.62518242]
[1767353623873,1.47915837,128.41,128.35,1.54501239]
[1767353624084,0.05952203,128.38,128.37,0.05379674]
[1767353625485,0.05952203,128.38,128.33,8.56641239]
[1767353625979,0.05952203,128.38,128.34,1.54501239]
[1767353626682,0.05952203,128.38,128.35,0.04918997]
[1767353628389,7.0175,128.41,128.35,1.59420236]
[1767353629085,8.49665837,128.41,128.35,1.59420236]
[1767353629479,0.05506336,128.39,128.35,1.59420236]
[1767353646790,0.05506336,128.39,128.35,8.61450236]
[1767353646998,0.05506336,128.39,128.36,1.38320208]
[1767353648898,1.56736934,128.39,128.36,1.38320208]
[1767353651604,0.05506336,128.39,128.36,1.38320208]
[1767353655605,2.87319408,128.43,128.36,1.38320208]
[1767353655795,1.51230598,128.43,128.36,1.38320208]
[1767353656502,0.05547472,128.41,128.38,1.43883919]
[1767353658108,1.3608881,128.44,128.38,1.43883919]
[1767353658109,1.3608881,128.44,128.39,1.38320208]
[1767353659096,0.05153517,128.43,128.39,1.38320208]
[1767353662311,0.05153517,128.43,128.4,1.38320208]
[1767353665308,0.05153517,128.43,128.38,8.45743919]
[1767353665609,1.61990976,128.43,128.38,1.43883919]
[1767353665909,10.09718057,128.42,128.38,0.05563711]
[1767353666111,1.51230598,128.4,128.36,1.49418495]
[1767353667112,1.51230598,128.4,128.37,0.05077949]
[1767353667113,0.05448798,128.39,128.37,0.05077949]
[1767353667411,0.05448798,128.39,128.37,0.05477561]
[1767353669415,1.51230598,128.41,128.37,1.48040435]
[1767353670620,0.05581967,128.4,128.37,1.48040435]
[1767353672022,0.05581967,128.4,128.37,0.05477561]
[1767353672216,1.51230598,128.39,128.37,0.05477561]
[1767353675521,7.07341967,128.4,128.37,0.05477561]
[1767353675726,0.05581967,128.4,128.37,0.05477561]
[1767353677129,0.05581967,128.4,128.37,1.48040435]
[1767353677812,92.06,128.45,128.37,1.48040435]
[1767353677813,10.04888026,128.44,128.38,1.42562874]
[1767353678827,0.05186727,128.42,128.4,0.05877162]
[1767353698350,10.04888026,128.44,128.4,0.05877162]
[1767353699340,0.05689895,128.43,128.4,0.05877162]
[1767353700642,1.46310233,128.47,128.4,1.47690894]
[1767353701544,0.05832758,128.45,128.4,1.47690894]
[1767353701744,0.05832758,128.45,128.41,7.0168]
[1767353701949,0.05832758,128.45,128.41,8.43493732]
[1767353702145,0.05832758,128.45,128.42,1.41813732]
[1767353702853,7.013,128.48,128.43,1.41813732]
[1767353703348,1.46310233,128.49,128.43,1.41813732]
[1767353703543,1.46310233,128.49,128.43,8.43383732]
[1767353703743,0.05180304,128.47,128.45,0.04990429]
[1767353705254,0.05180304,128.47,128.43,1.41813732]
[1767353706356,0.05180304,128.47,128.44,0.05851069]
[1767353709952,0.05180304,128.47,128.44,1.47664801]
[1767353713956,14.0211,128.53,128.44,1.47664801]
[1767353713957,109.0462,128.54,128.44,1.47664801]
[1767353714166,3.82435954,128.5,128.44,1.41813732]
[1767353714358,1.46310233,128.49,128.44,1.41813732]
[1767353714563,8.47680233,128.47,128.42,1.41813732]
[1767353714862,1.46310233,128.46,128.39,1.41813732]
[1767353715062,0.05654939,128.44,128.41,0.0530759]
[1767353718067,0.05654939,128.44,128.41,1.47121322]
[1767353719265,0.05654939,128.44,128.41,8.48791322]
[1767353719568,7.0137,128.47,128.42,1.41813732]
[1767353719960,8.47680233,128.47,128.42,1.41813732]
[1767353720674,0.02328154,128.46,128.42,1.41813732]
[1767353744872,8.60911037,128.46,128.42,1.41813732]
[1767353745782,1.59501037,128.46,128.42,1.41813732]
[1767353746191,1.59501037,128.46,128.41,0.0530759]
[1767353746685,7.0147,128.45,128.41,0.0530759]
[1767353747788,7.0152,128.44,128.41,0.0530759]
[1767353754192,1.57172883,128.41,128.36,1.52744535]
[1767353754378,1.57172883,128.41,128.33,92.04]
[1767353754582,1.57172883,128.41,128.34,1.52744535]
[1767353755191,0.05557117,128.39,128.36,0.05392499]
[1767353758586,0.05557117,128.39,128.36,1.53614216]
[1767353761496,1.45971405,128.43,128.36,1.53614216]
[1767353762395,1.45971405,128.44,128.38,1.48221717]
[1767353763594,1.45971405,128.44,128.4,0.0495413]
[1767353763896,8.47491405,128.44,128.4,0.0495413]
[1767353764895,1.45971405,128.44,128.4,0.0495413]
[1767353776304,109.0881,128.49,128.4,8.54905847]
[1767353776305,8.47381405,128.46,128.4,8.54905847]
[1767353776602,8.47381405,128.46,128.42,0.05352974]
[1767353776992,1.45971405,128.45,128.42,0.05352974]
[1767353786706,7.0141,128.46,128.42,0.05352974]
[1767353787401,8.35031239,128.46,128.42,0.05352974]
[1767353787807,1.33621239,128.46,128.42,1.38875088]
[1767353788012,7.0136,128.47,128.42,1.38875088]
[1767353788211,8.34981239,128.47,128.42,1.38875088]
[1767353788413,1.33621239,128.46,128.42,0.05352974]
[1767353789812,8.35061239,128.46,128.42,0.05352974]
[1767353791813,1.33621239,128.49,128.43,1.33522114]
[1767353792013,1.33621239,128.49,128.45,0.05481542]
[1767353793008,1.33621239,128.48,128.45,0.05481542]
[1767353793211,1.33621239,128.48,128.45,0.05510941]
[1767353797108,7.0125,128.49,128.45,0.05510941]
[1767353797109,8.34871239,128.49,128.45,0.05510941]
[1767353800622,8.34811239,128.51,128.46,1.51122127]
[1767353800822,8.34811239,128.51,128.45,1.39033055]
[1767353801024,8.34811239,128.51,128.45,2.90155182]
[1767353801915,1.33621239,128.51,128.45,9.91615182]
[1767353802116,1.33621239,128.51,128.46,1.33522114]
[1767353803819,1.33621239,128.51,128.46,8.34922114]
[1767353804519,7.0108,128.53,128.46,8.34922114]
[1767353804712,8.0011774,128.54,128.43,109.1317]
[1767353804713,8.34591239,128.54,128.48,8.40140881]
[1767353805124,1.33621239,128.53,128.48,1.38850881]
[1767353806922,8.34651239,128.53,128.48,1.38850881]
[1767353807312,1.33621239,128.51,128.48,0.05328767]
[1767353808532,1.33621239,128.48,128.41,2.84644241]
[1767353808715,8.34971239,128.47,128.41,8.35192114]
[1767353808916,8.34971239,128.47,128.38,109.172]
[1767353808917,1.33621239,128.46,128.38,1.33522114]
[1767353809224,1.33621239,128.46,128.39,1.33522114]
[1767353809519,0.05328768,128.44,128.41,0.05544749]
[1767353815223,1.51122127,128.47,128.42,8.35142114]
[1767353815424,2.84743366,128.49,128.43,1.33522114]
[1767353816331,2.84743366,128.49,128.45,0.05416384]
[1767353816723,1.46997492,128.48,128.45,0.05416384]
[1767353820026,8.52422127,128.49,128.45,0.05416384]
[1767353820328,8.48297492,128.49,128.45,0.05416384]
[1767353820733,1.46997492,128.49,128.45,0.05416384]
[1767353821239,1.51122127,128.51,128.45,0.05416384]
[1767353821240,1.46997492,128.51,128.46,2.9696237]
[1767353821535,1.46997492,128.51,128.46,1.45840243]
[1767353823028,1.46997492,128.51,128.46,8.47230243]
[1767353827632,8.48027492,128.53,128.47,8.47180243]
[1767353827935,8.48027492,128.53,128.49,0.0527678]
[1767353833040,1.46997492,128.52,128.49,0.0527678]
[1767353833235,1.46997492,128.52,128.47,7.0134]
[1767353834138,1.46997492,128.52,128.46,7.014]
[1767353834344,0.04986133,128.5,128.48,0.05589543]
[1767353835045,1.46997492,128.48,128.41,1.45840243]
[1767353835638,1.46997492,128.47,128.41,8.47520243]
[1767353836241,0.05359482,128.45,128.43,0.05205005]
[1767353883189,7.013,128.48,128.43,1.33810495]
[1767353883386,1.22403704,128.49,128.43,1.2860549]
[1767353884193,0.04988174,128.47,128.45,0.05357744]
[1767353889880,8.23603704,128.5,128.45,0.05357744]
[1767353894494,8.23653704,128.49,128.45,0.05357744]
[1767353895993,8.23703704,128.48,128.42,1.2860549]
[1767353896193,1.22403704,128.47,128.42,1.2860549]
[1767353897084,0.05665669,128.46,128.43,0.05401952]
[1767353900298,1.28069373,128.46,128.43,0.05401952]
[1767353900501,1.28069373,128.46,128.4,100.3231549]
[1767353901204,1.28069373,128.46,128.4,8.3031549]
[1767353901405,1.22403704,128.45,128.4,8.3031549]
[1767353901704,1.22403704,128.45,128.41,0.05333534]
[1767353901898,0.05334561,128.44,128.41,0.05333534]
[1767353911712,0.05334561,128.44,128.41,1.36126748]
[1767353912406,1.30235962,128.47,128.41,1.36126748]
[1767353912803,8.31645962,128.46,128.41,1.36126748]
[1767353913406,0.05268951,128.45,128.41,1.36126748]
[1767353916217,0.05268951,128.45,128.41,8.37806748]
[1767353917617,0.05268951,128.45,128.42,1.30793214]
[1767353935544,0.05268951,128.45,128.41,0.05333534]
[1767353936845,7.06748951,128.45,128.41,0.05333534]
[1767353937341,8.17813471,128.45,128.41,0.05333534]
[1767353937546,1.16333471,128.45,128.41,0.05333534]
[1767353938137,7.0158,128.43,128.41,0.05333534]
[1767353938640,1.16333471,128.45,128.41,0.05333534]
[1767353939037,2.67336801,128.45,128.41,0.05333534]
[1767353939933,7.0152,128.44,128.41,0.05333534]
[1767353940138,8.1258452,128.44,128.41,0.05333534]
[1767353941144,1.1106452,128.49,128.42,93.16879877]
[1767353941352,1.1106452,128.49,128.44,1.12879877]
[1767353942249,1.1106452,128.49,128.45,0.05439464]
[1767353942648,1.1106452,128.51,128.45,1.18319341]
[1767353942944,1.5100333,128.5,128.45,1.18319341]
[1767353943137,9.6330785,128.5,128.46,0.05472061]
[1767353945553,8.1230452,128.5,128.46,0.05472061]
[1767353951759,7.0125,128.49,128.46,0.05472061]
[1767353952660,8.1225452,128.5,128.46,0.05472061]
[1767353964463,1.1106452,128.49,128.46,0.05472061]
[1767353975674,8.1231452,128.49,128.46,0.05472061]
[1767353976572,1.12035061,128.47,128.41,1.12224968]
[1767353976773,1.12035061,128.46,128.39,1.12224968]
[1767353977274,2.35888304,128.47,128.39,8.13964968]
[1767353977275,8.13495061,128.45,128.39,8.13964968]
[1767353977473,1.12035061,128.45,128.39,1.12224968]
[1767353977660,0.05580949,128.43,128.41,0.05219107]
[1767353977866,1.12035061,128.42,128.35,1.12224968]
[1767353978066,1.12035061,128.4,128.33,1.12224968]
[1767353978461,1.12035061,128.39,128.33,1.12224968]
[1767353978873,0.05979839,128.37,128.35,0.05564534]
[1767353980884,7.0174,128.4,128.35,0.05564534]
[1767353981177,8.13775061,128.4,128.35,0.05564534]
[1767353981979,0.0538618,128.39,128.35,0.05564534]
[1767353987982,0.0538618,128.39,128.35,8.19789502]
[1767353989890,0.0538618,128.39,128.35,1.17789502]
[1767353997192,0.0538618,128.39,128.35,8.19779502]
[1767353997396,0.0538618,128.39,128.36,1.06408313]
[1767353999296,8.06934772,128.42,128.36,1.06408313]
[1767354000196,8.06934772,128.42,128.38,0.05835489]
[1767354001196,7.0157,128.43,128.38,1.12243802]
[1767354001386,25.73888304,128.46,128.38,1.12243802]
[1767354001387,1.05304772,128.46,128.38,1.12243802]
[1767354001591,1.05304772,128.46,128.41,0.05339994]
[1767354002391,1.05304772,128.45,128.41,0.05339994]
[1767354014598,1.05304772,128.43,128.36,1.06408313]
[1767354014805,1.05304772,128.41,128.35,2.57495388]
[1767354015115,1.05304772,128.4,128.35,1.06408313]
[1767354015611,0.05339994,128.39,128.36,0.05251572]
[1767354021026,1.10644766,128.39,128.33,1.06408313]
[1767354021516,2.56391847,128.34,128.29,1.06408313]
[1767354022013,2.56391847,128.34,128.3,0.05769534]
[1767354022014,0.05487655,128.33,128.3,0.05769534]
[1767354022814,1.10792427,128.33,128.3,0.05769534]
[1767354023217,1.10792427,128.33,128.27,9.234276]
[1767354023218,2.56391847,128.32,128.27,9.234276]
[1767354024223,2.56391847,128.32,128.28,0.05785634]
[1767354024824,1.05304772,128.32,128.28,0.05785634]
[1767354025024,2.56391847,128.32,128.28,0.05785634]
[1767354025821,1.05304772,128.31,128.28,0.05785634]
[1767354026419,8.07544772,128.31,128.25,1.06408313]
[1767354026625,2.6642743,128.3,128.25,1.06408313]
[1767354027418,0.05228542,128.29,128.26,0.05154087]
[1767354031326,1.15340355,128.32,128.26,1.18583471]
[1767354031524,1.15340355,128.32,128.26,1.13429384]
[1767354032318,0.05126704,128.3,128.28,0.05065579]
[1767354037930,1.20467059,128.3,128.24,8.15989384]
[1767354038832,1.20467059,128.3,128.26,0.05764032]
[1767354041134,1.15340355,128.29,128.26,0.05764032]
[1767354041737,1.15340355,128.29,128.23,1.13429384]
[1767354042733,0.05097612,128.27,128.25,0.05407662]
[1767354046639,1.15340355,128.29,128.25,0.05407662]
[1767354047739,0.05481805,128.28,128.25,0.05407662]
[1767354054551,1.15340355,128.26,128.21,92.08]
[1767354054748,1.15340355,128.24,128.17,2.64516459]
[1767354055057,2.6642743,128.23,128.17,1.13429384]
[1767354055252,2.6642743,128.23,128.17,8.16419384]
[1767354055455,2.6642743,128.23,128.17,1.13429384]
[1767354055746,0.05968457,128.21,128.19,0.053435]
[1767354055948,1.19579173,128.25,128.19,1.20469986]
[1767354056147,1.19579173,128.27,128.2,2.66213561]
[1767354056360,1.19579173,128.27,128.21,1.15126486]
[1767354056552,2.70666248,128.29,128.22,1.15126486]
[1767354056949,0.05631004,128.27,128.24,0.05437929]
[1767354058947,1.19579173,128.26,128.19,2.66213561]
[1767354059151,2.70666248,128.25,128.19,1.15126486]
[1767354059961,0.05100802,128.23,128.21,0.05637475]
[1767354061857,1.24679975,128.23,128.17,1.15126486]
[1767354063052,1.24679975,128.23,128.19,0.05405489]
[1767354064465,1.51087075,128.2,128.15,1.15126486]
[1767354064659,1.51087075,128.2,128.13,93.31126486]
[1767354064660,1.19579173,128.19,128.13,93.31126486]
[1767354064866,8.22519173,128.18,128.13,1.15126486]
[1767354065157,1.19579173,128.17,128.1,1.15126486]
[1767354065356,1.19579173,128.17,128.06,10.66562921]
[1767354065357,8.27980794,128.15,128.12,0.05774455]
[1767354065563,1.19579173,128.14,128.08,1.15126486]
[1767354065750,1.19579173,128.12,128.06,9.04261064]
[1767354065953,1.19579173,128.12,128.01,1.15126486]
[1767354065954,8.54547075,128.09,128.01,1.15126486]
[1767354066157,201.5811,128.12,128.01,1.15126486]
[1767354066362,1.51087075,128.09,128.01,1.15126486]
[1767354066663,0.05230014,128.08,128.05,0.05525337]
[1767354067060,1.51087075,128.12,128.05,1.20651823]
[1767354067266,1.51087075,128.14,128.06,1.15126486]
[1767354067556,1.51087075,128.14,128.06,8.18696486]
[1767354067765,1.51087075,128.14,128.07,1.15126486]
[1767354068159,0.04998434,128.12,128.09,0.05585611]
[1767354069060,101.60127289,128.19,128.09,1.20712097]
[1767354069253,101.60127289,128.19,128.09,1.15126486]
[1767354069658,9.40127289,128.19,128.09,1.15126486]
[1767354070058,0.04916152,128.15,128.13,0.05515367]
[1767354071160,2.42133441,128.15,128.06,93.37126486]
[1767354071352,2.37217289,128.15,128.06,93.37126486]
[1767354071551,2.37217289,128.15,128.07,1.15126486]
[1767354071756,7.0309,128.16,128.07,1.15126486]
[1767354072157,0.05159135,128.13,128.1,0.0568315]
[1767354074767,2.37217289,128.17,128.1,0.0568315]
[1767354074962,99.2497,128.18,128.1,1.20809636]
[1767354075163,99.2497,128.18,128.1,1.15126486]
[1767354075365,7.0297,128.18,128.1,1.15126486]
[1767354075666,0.05645043,128.15,128.13,0.05566326]
[1767354076264,2.37217289,128.19,128.13,0.05566326]
[1767354076470,2.37217289,128.17,128.13,0.05566326]
[1767354076766,2.37217289,128.17,128.13,0.00407191]
[1767354077160,9.40237289,128.17,128.13,0.00407191]
[1767354077864,0.0517669,128.16,128.13,0.00407191]
[1767354081075,92.24,128.22,128.13,1.15533677]
[1767354081276,7.0279,128.21,128.13,1.15126486]
[1767354082070,0.05581541,128.18,128.16,0.05514251]
[1767354083875,115.90004708,128.25,128.16,0.05514251]
[1767354083876,115.88154708,128.27,128.18,1.15126486]
[1767354084069,201.5153,128.27,128.18,1.15126486]
[1767354084270,109.2753,128.27,128.18,1.15126486]
[1767354084472,201.5153,128.27,128.18,1.15126486]
[1767354084677,7.0259,128.25,128.18,1.15126486]
[1767354084877,0.05398351,128.23,128.2,0.05578098]
[1767354090681,0.05398351,128.23,128.2,0.00401408]
[1767354090977,7.0281,128.21,128.15,0.48358357]
[1767354091276,7.0281,128.21,128.1,109.4098]
[1767354091277,109.3221,128.21,128.13,0.48358357]
[1767354091486,201.5336,128.22,128.13,0.48358357]
[1767354091869,0.05702307,128.19,128.16,0.05797372]
[1767354112186,0.05702307,128.19,128.16,0.54155729]
[1767354112495,7.0273,128.22,128.16,0.54155729]
[1767354113396,0.05443955,128.2,128.16,0.54155729]
[1767354114093,0.05443955,128.2,128.16,7.57205729]
[1767354114291,0.05443955,128.2,128.17,0.48358357]
[1767354115090,7.0265,128.24,128.18,0.48358357]
[1767354115892,7.0265,128.24,128.15,92.22]
[1767354115893,7.0256,128.25,128.19,7.51228357]
[1767354116092,0.05283468,128.23,128.21,0.05903574]
[1767354116701,92.22,128.28,128.21,0.38914931]
[1767354117805,7.0245,128.27,128.21,0.38914931]
[1767354117990,0.05621522,128.26,128.21,0.38914931]
[1767354118795,7.08131522,128.26,128.21,0.38914931]
[1767354119193,0.05621522,128.26,128.21,0.38914931]
[1767354119700,0.05621522,128.26,128.21,7.41684931]
[1767354120293,0.05621522,128.26,128.22,7.0272]
[1767354120501,0.05621522,128.26,128.22,7.35731357]
[1767354120703,0.05621522,128.26,128.22,0.33011357]
[1767354122198,0.05621522,128.26,128.22,7.35731357]
[1767354122597,0.05621522,128.26,128.23,7.35671357]
[1767354122902,101.61007157,128.31,128.24,0.33011357]
[1767354123292,9.39007157,128.31,128.24,0.33011357]
[1767354123994,0.05143599,128.29,128.26,0.05044346]
[1767354126905,7.0216,128.33,128.26,0.38055703]
[1767354127888,7.0216,128.33,128.26,7.40555703]
[1767354128502,8.53560557,128.33,128.26,7.40555703]
[1767354132308,7.023,128.3,128.26,0.05044346]
[1767354132502,1.51400557,128.29,128.26,0.05044346]
[1767354132907,7.024,128.28,128.26,0.05044346]
[1767354133207,1.51400557,128.27,128.22,0.33011357]
[1767354133996,0.05669113,128.26,128.23,0.05885504]
[1767354139310,1.5706967,128.26,128.23,0.05885504]
[1767354143117,0.05669113,128.26,128.23,0.05885504]
[1767354143317,0.05669113,128.26,128.18,1.51400557]
[1767354143318,1.51400557,128.24,128.18,0.33011357]
[1767354143522,1.51400557,128.22,128.18,0.33011357]
[1767354144410,0.04932674,128.21,128.19,0.04913942]
[1767354146122,1.51400557,128.22,128.19,0.04913942]
[1767354147030,1.56323349,128.22,128.19,0.04913942]
[1767354155227,8.59053349,128.22,128.19,0.04913942]
[1767354155540,8.59053349,128.22,128.17,263.25326673]
[1767354156638,8.59053349,128.22,128.18,0.05844422]
[1767354156938,1.56323349,128.22,128.18,0.05844422]
[1767354157934,8.59053349,128.22,128.18,0.05844422]
[1767354161533,1.56323349,128.22,128.14,0.31990992]
[1767354161743,1.51400557,128.22,128.14,92.51990992]
[1767354162547,0.05643171,128.19,128.17,0.05912968]
[1767354166338,7.08533171,128.19,128.17,0.05912968]
[1767354166539,0.05643171,128.19,128.17,0.05912968]
[1767354167350,7.0273,128.22,128.17,0.3790396]
[1767354168242,0.05421493,128.21,128.17,0.3790396]
[1767354168749,7.08201493,128.21,128.17,0.3790396]
[1767354169045,0.05421493,128.21,128.18,1.83391549]
[1767354169238,202.99830557,128.26,128.18,1.83391549]
[1767354169441,203.01830557,128.26,128.18,1.83391549]
[1767354170147,0.04953212,128.23,128.21,0.05575622]
[1767354170748,7.0272,128.22,128.16,7.0305]
[1767354171251,7.0272,128.22,128.16,7.35040992]
[1767354171948,0.05512505,128.2,128.18,0.05003196]
[1767354179055,7.0268,128.23,128.18,0.3863813]
[1767354179557,92.2,128.26,128.2,0.33634934]
[1767354179752,7.0262,128.24,128.18,7.36554934]
[1767354180150,0.04926013,128.22,128.2,0.05931124]
[1767354185554,7.0256,128.25,128.2,0.39566058]
[1767354186059,1.51400557,128.27,128.2,0.39566058]
[1767354186459,0.02439616,128.25,128.2,0.39566058]
[1767354188258,0.02439616,128.25,128.22,0.33634934]
[1767354188663,7.0245,128.28,128.22,0.33634934]
[1767354188852,7.0245,128.28,128.23,0.33634934]
[1767354189049,7.0245,128.28,128.23,1.85035491]
[1767354189464,7.0234,128.29,128.23,1.85035491]
[1767354189666,7.0234,128.29,128.24,0.04954564]
[1767354191565,7.0239,128.28,128.24,0.04954564]
[1767354193856,7.0251,128.26,128.21,0.33634934]
[1767354195164,0.04954564,128.25,128.22,0.05214515]
[1767354195369,7.07524564,128.25,128.22,0.05214515]
[1767354198475,7.07524564,128.25,128.19,7.36514934]
[1767354199463,7.07524564,128.25,128.21,0.05242296]
[1767354203278,2.3666804,128.24,128.17,0.33634934]
[1767354204084,2.3666804,128.24,128.17,7.36614934]
[1767354204386,0.05027916,128.22,128.19,0.05752932]
[1767354211092,0.05027916,128.22,128.19,0.39422355]
[1767354213794,7.0255,128.26,128.2,0.33669423]
[1767354214185,92.2,128.27,128.2,0.33669423]
[1767354214990,0.05185533,128.25,128.22,0.05159208]
[1767354215795,7.07765533,128.25,128.22,0.05159208]
[1767354217800,0.05185533,128.25,128.22,0.05159208]
[1767354218701,7.07745533,128.25,128.22,0.05159208]
[1767354220206,7.07745533,128.25,128.2,0.33669423]
[1767354221202,7.0261,128.24,128.21,0.05764887]
[1767354227719,7.0272,128.22,128.14,0.33669423]
[1767354228005,2.3666804,128.2,128.11,0.33669423]
[1767354228808,0.04929729,128.17,128.14,0.05857557]
[1767354232120,7.07939729,128.17,128.14,0.05857557]
[1767354234115,7.07939729,128.17,128.1,7.37039423]
[1767354235117,7.07939729,128.17,128.12,0.05947369]
[1767354237710,0.04929729,128.17,128.12,0.05947369]
[1767354240119,7.07929729,128.17,128.12,0.05947369]
[1767354242022,0.04929729,128.17,128.12,0.39144216]
[1767354245625,0.04929729,128.17,128.13,0.33196847]
[1767354249432,2.3666804,128.19,128.12,7.09197369]
[1767354249433,2.3666804,128.22,128.15,0.33196847]
[1767354250634,0.05655171,128.2,128.17,0.05819045]
[1767354250834,7.08505171,128.2,128.17,0.05819045]
[1767354251227,0.05655171,128.2,128.17,0.05819045]
[1767354251423,224.98,128.24,128.17,0.05819045]
[1767354251424,92.24,128.24,128.17,0.39015892]
[1767354252540,0.05118624,128.22,128.17,0.39015892]
[1767354252943,7.07868624,128.22,128.17,0.39015892]
[1767354256047,0.05118624,128.22,128.17,0.39015892]
[1767354258545,0.05118624,128.22,128.18,0.33196847]
[1767354266444,7.07848624,128.22,128.18,0.33196847]
[1767354267260,7.07848624,128.22,128.17,0.05819045]
[1767354267453,7.07848624,128.22,128.17,0.37921428]
[1767354267757,8.59494299,128.22,128.17,0.37921428]
[1767354269661,8.59494299,128.22,128.18,0.32102383]